[Event "Chestnut 2nd Category Final 2025"]
[Site "Kyiv"]
[Date "2025.04.06"]
[Round "4.4"]
[White "Diachuk, Ihor"]
[Black "Atamanchuk, Dmytro"]
[Result "0-1"]
[Annotator "NA"]
[ECO "C59"]
[WhiteElo "1550"]
[BlackElo "1493"]
[PlyCount "94"]
[EventDate "2025.04.03"]
[EventCountry "UKR"]
[SourceTitle "playchess.com"]
[Source "ChessBase"]
[SourceQuality "1"]
[TimeControl "600+5"]

1. e4 {[%emt 0:00:02]} e5 {[%emt 0:00:01]} 2. Nf3 {[%emt 0:00:01]} Nc6 {[%emt 0:00:01]} 3. Bc4 {[%emt 0:00:01]} Nf6 {[%emt 0:00:02]} 4. Ng5 {[%emt 0:00:02]} d5 {[%emt 0:00:02]} 5. exd5 {[%emt 0:00:01]} Na5 {[%emt 0:00:01]} 6. Bb5+ {[%emt 0:00:03]} c6 {[%emt 0:00:02]} 7. dxc6 {[%emt 0:00:02]} bxc6 {[%emt 0:00:01]} 8. Be2 {[%emt 0:00:02]} h6 {[%emt 0:00:05]} 9. Nh3 {[%emt 0:00:02]} Bc5 {[%emt 0:01:39]} 10. Nc3 Qd4 {[%emt 0:00:38]} 11. d3 {[%emt 0:00:22]} Qh4 {[%emt 0:01:02]} 12. Bf1 {[%emt 0:01:19]} Bxh3 {[%emt 0:00:39]} 13. g3 {[%emt 0:00:06]} Qg4 {[%emt 0:00:13]} 14. Bxh3 {[%emt 0:00:03]} Qxh3 {[%emt 0:00:09]} 15. Qf3 {[%emt 0:00:04]} Qd7 {[%emt 0:00:14]} 16. Be3 {[%emt 0:00:04]} Bxe3 {[%emt 0:00:08]} 17. Qxe3 {[%emt 0:00:03]} Qd6 {[%emt 0:00:10]} 18. O-O {[%emt 0:00:11]} O-O {[%emt 0:00:04]} 19. Ne4 {[%emt 0:00:02]} Nxe4 20. dxe4 {[%emt 0:00:04]} Nc4 {[%emt 0:00:34]} 21. Qc3 {[%emt 0:00:01]} Nb6 {[%emt 0:00:13]} 22. Rad1 {[%emt 0:00:03]} Qe6 {[%emt 0:00:06]} 23. a3 {[%emt 0:00:02]} Rfd8 {[%emt 0:00:04]} 24. Qa5 {[%emt 0:00:17]} Qe7 {[%emt 0:00:25]} 25. Qc3 {[%emt 0:00:04]} Qc7 {[%emt 0:00:12]} 26. Rd3 {[%emt 0:00:14]} Rxd3 {[%emt 0:00:05]} 27. cxd3 {[%emt 0:00:02]} Rb8 {[%emt 0:00:13]} 28. Rc1 {[%emt 0:00:02]} Na4 {[%emt 0:00:24]} 29. Qxc6 {[%emt 0:00:06]} Qxc6 {[%emt 0:00:03]} 30. Rxc6 {[%emt 0:00:02]} Nxb2 {[%emt 0:00:26]} 31. Ra6 {[%emt 0:00:02]} Rb7 32. Ra5 {[%emt 0:00:01]} Nxd3 {[%emt 0:00:21]} 33. Rd5 {[%emt 0:00:04]} Rb3 {[%emt 0:00:04]} 34. Ra5 {[%emt 0:00:01]} Rb7 {[%emt 0:00:44]} 35. Rd5 Nb2 {[%emt 0:00:15]} 36. Rxe5 {[%emt 0:00:07]} Nc4 {[%emt 0:00:02]} 37. Rc5 {[%emt 0:00:06]} Nxa3 {[%emt 0:00:07]} 38. Ra5 {[%emt 0:00:03]} Nc4 {[%emt 0:00:07]} 39. Ra4 {[%emt 0:00:01]} Nb6 {[%emt 0:00:04]} 40. Rb4 {[%emt 0:00:01]} Re7 {[%emt 0:00:03]} 41. f3 {[%emt 0:00:02]} f6 {[%emt 0:00:08]} 42. Rb5 {[%emt 0:00:03]} Kf7 {[%emt 0:00:02]} 43. Ra5 Nc4 {[%emt 0:00:03]} 44. Ra4 {[%emt 0:00:05]} Rc7 {[%emt 0:00:18]} 45. Kg2 Ne3+ {[%emt 0:00:19]} 46. Kf2 {[%emt 0:00:05]} Nd1+ {[%emt 0:00:06]} 47. Ke2 {[%emt 0:00:02]} Nc3+ {[%emt 0:00:01]} 0-1

[Event "Chestnut 2nd Category Final 2025"]
[Site "Kyiv"]
[Date "2025.04.06"]
[Round "4.5"]
[White "Udod, Oleksandra"]
[Black "Lymar, Makar"]
[Result "0-1"]
[Annotator "NA"]
[ECO "D11"]
[WhiteElo "1646"]
[BlackElo "1565"]
[PlyCount "57"]
[EventDate "2025.04.03"]
[EventCountry "UKR"]
[SourceTitle "playchess.com"]
[Source "ChessBase"]
[SourceQuality "1"]
[TimeControl "600+5"]

1. d4 {[%emt 0:00:01]} c6 {[%emt 0:00:01]} 2. c4 {[%emt 0:00:01]} d5 {[%emt 0:00:01]} 3. Nf3 Nf6 {[%emt 0:00:04]} 4. g3 {[%emt 0:00:03]} Bg4 {[%emt 0:00:01]} 5. Bg2 {[%emt 0:00:03]} Nbd7 {[%emt 0:00:01]} 6. Nc3 {[%emt 0:01:25]} e6 {[%emt 0:00:07]} 7. O-O {[%emt 0:00:27]} Bd6 {[%emt 0:00:07]} 8. c5 {[%emt 0:00:15]} Bc7 {[%emt 0:00:05]} 9. Re1 {[%emt 0:00:04]} O-O {[%emt 0:00:05]} 10. Qb3 {[%emt 0:00:55]} b6 {[%emt 0:00:13]} 11. Qc2 {[%emt 0:01:26]} bxc5 {[%emt 0:00:10]} 12. dxc5 {[%emt 0:00:01]} Nxc5 {[%emt 0:00:03]} 13. Nd4 {[%emt 0:01:14]} Qd6 {[%emt 0:00:41]} 14. b4 {[%emt 0:01:09]} Ncd7 {[%emt 0:00:38]} 15. b5 {[%emt 0:00:20]} c5 {[%emt 0:00:19]} 16. Nc6 {[%emt 0:00:15]} a6 {[%emt 0:00:14]} 17. f4 {[%emt 0:00:58]} axb5 {[%emt 0:00:27]} 18. Ne5 {[%emt 0:00:12]} Qb6 {[%emt 0:00:54]} 19. Nxd7 {[%emt 0:00:24]} Nxd7 {[%emt 0:00:05]} 20. e4 {[%emt 0:00:30]} b4 {[%emt 0:00:16]} 21. Rb1 {[%emt 0:00:20]} c4+ {[%emt 0:00:17]} 22. Kh1 {[%emt 0:00:05]} Qa5 {[%emt 0:00:32]} 23. exd5 {[%emt 0:00:38]} Bf5 {[%emt 0:00:42]} 24. Be4 {[%emt 0:00:14]} bxc3 {[%emt 0:00:24]} 25. Bxf5 {[%emt 0:00:25]} exf5 {[%emt 0:00:02]} 26. Qxf5 {[%emt 0:00:02]} c2 {[%emt 0:00:33]} 27. Bd2 {[%emt 0:00:44]} cxb1=Q {[%emt 0:00:06]} 28. Qxb1 {[%emt 0:00:07]} Qxd5+ {[%emt 0:00:18]} 29. Kg1 0-1

[Event "Chestnut 2nd Category Final 2025"]
[Site "Kyiv"]
[Date "2025.04.06"]
[Round "5.1"]
[White "Prykhodko, Artem"]
[Black "Kravchuk, Sviatoslav"]
[Result "1-0"]
[Annotator "NA"]
[ECO "C50"]
[WhiteElo "1678"]
[BlackElo "1441"]
[PlyCount "169"]
[EventDate "2025.04.03"]
[EventCountry "UKR"]
[SourceTitle "playchess.com"]
[Source "ChessBase"]
[SourceQuality "1"]
[TimeControl "600+5"]

1. e4 {[%emt 0:00:02]} e5 {[%emt 0:00:02]} 2. Nf3 {[%emt 0:00:03]} Nc6 {[%emt 0:00:02]} 3. Bc4 {[%emt 0:00:01]} Bc5 {[%emt 0:00:05]} 4. Nc3 {[%emt 0:00:02]} Nf6 {[%emt 0:00:06]} 5. O-O {[%emt 0:00:12]} d6 {[%emt 0:00:02]} 6. h3 {[%emt 0:00:02]} O-O {[%emt 0:00:06]} 7. d3 {[%emt 0:00:03]} h6 {[%emt 0:00:02]} 8. Be3 {[%emt 0:00:04]} Bxe3 {[%emt 0:00:06]} 9. fxe3 {[%emt 0:00:03]} b6 {[%emt 0:00:10]} 10. d4 {[%emt 0:00:05]} exd4 {[%emt 0:00:09]} 11. exd4 {[%emt 0:00:02]} Bb7 {[%emt 0:00:05]} 12. e5 {[%emt 0:00:54]} dxe5 {[%emt 0:00:47]} 13. dxe5 {[%emt 0:00:13]} Nh7 {[%emt 0:01:01]} 14. e6 {[%emt 0:00:09]} fxe6 {[%emt 0:00:05]} 15. Bxe6+ {[%emt 0:00:03]} Kh8 {[%emt 0:00:03]} 16. Nh2 {[%emt 0:00:51]} Rxf1+ {[%emt 0:00:47]} 17. Qxf1 {[%emt 0:00:15]} Qd4+ {[%emt 0:00:18]} 18. Kh1 {[%emt 0:00:16]} Ng5 {[%emt 0:00:14]} 19. Nf3 {[%emt 0:00:18]} Nxf3 {[%emt 0:00:42]} 20. Qxf3 {[%emt 0:00:07]} Qd6 {[%emt 0:00:15]} 21. Bd5 {[%emt 0:00:33]} Rf8 {[%emt 0:00:31]} 22. Qe4 {[%emt 0:00:34]} Qf6 {[%emt 0:01:15]} 23. Bc4 {[%emt 0:00:27]} Na5 {[%emt 0:00:29]} 24. Bd5 {[%emt 0:00:06]} c6 {[%emt 0:01:06]} 25. Bb3 {[%emt 0:00:59]} Nxb3 {[%emt 0:00:36]} 26. axb3 {[%emt 0:00:02]} Qd6 {[%emt 0:00:05]} 27. Rd1 {[%emt 0:00:43]} Qc7 {[%emt 0:00:03]} 28. Qb4 {[%emt 0:00:24]} c5 {[%emt 0:00:03]} 29. Qh4 {[%emt 0:00:54]} Qc6 {[%emt 0:00:19]} 30. Qg3 {[%emt 0:00:26]} Re8 {[%emt 0:00:30]} 31. Nd5 {[%emt 0:00:52]} Rd8 {[%emt 0:00:31]} 32. Nc3 {[%emt 0:00:27]} Re8 {[%emt 0:00:25]} 33. Qg4 {[%emt 0:01:17]} Bc8 {[%emt 0:00:28]} 34. Qa4 {[%emt 0:00:15]} Qxa4 {[%emt 0:00:23]} 35. bxa4 {[%emt 0:00:06]} Bf5 {[%emt 0:00:04]} 36. Rd2 {[%emt 0:00:36]} Re1+ {[%emt 0:00:15]} 37. Kh2 {[%emt 0:00:01]} Re8 {[%emt 0:00:04]} 38. g4 {[%emt 0:00:02]} Bg6 {[%emt 0:00:02]} 39. Nb5 {[%emt 0:00:07]} a6 {[%emt 0:00:08]} 40. Nc7 {[%emt 0:00:01]} Re1 {[%emt 0:00:33]} 41. Nxa6 {[%emt 0:00:05]} Rc1 {[%emt 0:00:07]} 42. c3 {[%emt 0:00:02]} Rc2 {[%emt 0:00:05]} 43. Rxc2 {[%emt 0:00:03]} Bxc2 {[%emt 0:00:03]} 44. a5 {[%emt 0:00:16]} bxa5 {[%emt 0:00:02]} 45. Nxc5 {[%emt 0:00:03]} a4 {[%emt 0:00:09]} 46. Kg3 {[%emt 0:00:03]} Kg8 {[%emt 0:00:03]} 47. h4 {[%emt 0:00:01]} Kf7 {[%emt 0:00:02]} 48. Kf4 {[%emt 0:00:02]} Kf6 {[%emt 0:00:05]} 49. g5+ {[%emt 0:00:05]} Kg6 {[%emt 0:00:09]} 50. Ne4 {[%emt 0:00:09]} Bxe4 {[%emt 0:00:18]} 51. Kxe4 {[%emt 0:00:02]} hxg5 {[%emt 0:00:02]} 52. hxg5 {[%emt 0:00:05]} Kxg5 {[%emt 0:00:02]} 53. Ke5 {[%emt 0:00:06]} Kh4 {[%emt 0:00:03]} 54. c4 {[%emt 0:00:01]} g5 {[%emt 0:00:02]} 55. c5 {[%emt 0:00:02]} g4 {[%emt 0:00:01]} 56. c6 {[%emt 0:00:01]} g3 {[%emt 0:00:01]} 57. c7 {[%emt 0:00:04]} g2 {[%emt 0:00:05]} 58. c8=Q {[%emt 0:00:03]} g1=Q {[%emt 0:00:06]} 59. Qh8+ {[%emt 0:00:02]} Kg3 {[%emt 0:00:01]} 60. Qg7+ {[%emt 0:00:02]} Kf2 {[%emt 0:00:04]} 61. Qxg1+ {[%emt 0:00:02]} Kxg1 {[%emt 0:00:01]} 62. Kd4 {[%emt 0:00:01]} Kf2 {[%emt 0:00:01]} 63. Kc4 {[%emt 0:00:01]} Ke2 {[%emt 0:00:01]} 64. Kb4 {[%emt 0:00:01]} Kd3 {[%emt 0:00:02]} 65. Kxa4 {[%emt 0:00:03]} Kc4 {[%emt 0:00:01]} 66. b4 {[%emt 0:00:02]} Kd5 {[%emt 0:00:02]} 67. Ka5 {[%emt 0:00:01]} Kc6 {[%emt 0:00:01]} 68. b5+ {[%emt 0:00:01]} Kc7 {[%emt 0:00:01]} 69. Ka6 {[%emt 0:00:03]} Kc8 {[%emt 0:00:04]} 70. Ka7 {[%emt 0:00:01]} Kc7 {[%emt 0:00:01]} 71. b6+ {[%emt 0:00:01]} Kc8 {[%emt 0:00:01]} 72. b7+ {[%emt 0:00:01]} Kc7 {[%emt 0:00:01]} 73. b8=R {[%emt 0:00:03]} Kc6 {[%emt 0:00:05]} 74. Rb7 {[%emt 0:00:02]} Kd6 {[%emt 0:00:01]} 75. Kb6 {[%emt 0:00:01]} Ke6 {[%emt 0:00:01]} 76. Kc5 {[%emt 0:00:02]} Kf6 {[%emt 0:00:01]} 77. Kd5 {[%emt 0:00:01]} Kg6 {[%emt 0:00:02]} 78. Ke5 {[%emt 0:00:01]} Kg5 {[%emt 0:00:01]} 79. Rg7+ {[%emt 0:00:02]} Kh6 {[%emt 0:00:01]} 80. Rg1 {[%emt 0:00:01]} Kh5 {[%emt 0:00:01]} 81. Kf4 {[%emt 0:00:01]} Kh6 {[%emt 0:00:01]} 82. Kf5 {[%emt 0:00:01]} Kh7 {[%emt 0:00:01]} 83. Kf6 {[%emt 0:00:01]} Kh8 {[%emt 0:00:01]} 84. Kf7 {[%emt 0:00:01]} Kh7 {[%emt 0:00:01]} 85. Rh1# {[%emt 0:00:01]} 1-0

[Event "Chestnut 2nd Category Final 2025"]
[Site "Kyiv"]
[Date "2025.04.06"]
[Round "5.2"]
[White "Lymar, Makar"]
[Black "Chornyi, Viktor"]
[Result "0-1"]
[Annotator "NA"]
[ECO "D53"]
[WhiteElo "1565"]
[BlackElo "1515"]
[PlyCount "136"]
[EventDate "2025.04.03"]
[EventCountry "UKR"]
[SourceTitle "playchess.com"]
[Source "ChessBase"]
[SourceQuality "1"]
[TimeControl "600+5"]

1. d4 {[%emt 0:00:00]} d5 {[%emt 0:00:03]} 2. c4 {[%emt 0:00:01]} e6 {[%emt 0:00:01]} 3. Nc3 {[%emt 0:00:01]} Nf6 {[%emt 0:00:02]} 4. Bg5 {[%emt 0:00:02]} Be7 {[%emt 0:00:02]} 5. Nf3 {[%emt 0:00:01]} h6 {[%emt 0:00:02]} 6. Bh4 {[%emt 0:00:02]} Nc6 {[%emt 0:00:06]} 7. a3 {[%emt 0:00:01]} a5 {[%emt 0:00:03]} 8. e3 {[%emt 0:00:04]} b6 {[%emt 0:00:02]} 9. Bd3 {[%emt 0:00:14]} Bb7 {[%emt 0:00:15]} 10. O-O {[%emt 0:00:03]} Na7 {[%emt 0:00:34]} 11. cxd5 {[%emt 0:00:09]} Nxd5 {[%emt 0:00:03]} 12. Bxe7 {[%emt 0:00:05]} Qxe7 {[%emt 0:00:03]} 13. Nxd5 {[%emt 0:00:04]} Bxd5 {[%emt 0:00:03]} 14. e4 {[%emt 0:00:08]} Bb7 {[%emt 0:00:09]} 15. Rc1 {[%emt 0:00:22]} Rd8 {[%emt 0:00:25]} 16. Qa4+ {[%emt 0:00:56]} Bc6 {[%emt 0:00:09]} 17. Rxc6 {[%emt 0:00:05]} Nxc6 {[%emt 0:00:03]} 18. Qxc6+ {[%emt 0:00:02]} Qd7 {[%emt 0:00:01]} 19. Qxd7+ {[%emt 0:00:26]} Kxd7 {[%emt 0:00:08]} 20. Ne5+ {[%emt 0:00:19]} Ke8 {[%emt 0:00:11]} 21. Bb5+ {[%emt 0:00:18]} Kf8 {[%emt 0:00:06]} 22. Nd7+ {[%emt 0:00:03]} Kg8 {[%emt 0:00:23]} 23. Rc1 {[%emt 0:00:10]} Rc8 {[%emt 0:00:20]} 24. Nxb6 {[%emt 0:00:06]} Rb8 {[%emt 0:00:05]} 25. Rxc7 {[%emt 0:01:29]} Rxb6 {[%emt 0:00:06]} 26. Bd3 {[%emt 0:00:22]} g6 {[%emt 0:00:09]} 27. h3 {[%emt 0:00:24]} Rxb2 {[%emt 0:00:05]} 28. Rc8+ {[%emt 0:01:03]} Kg7 {[%emt 0:00:01]} 29. Rc7 {[%emt 0:00:01]} Rb3 {[%emt 0:00:05]} 30. Bc2 {[%emt 0:00:12]} Rxa3 {[%emt 0:00:05]} 31. d5 {[%emt 0:00:05]} exd5 {[%emt 0:00:12]} 32. exd5 {[%emt 0:00:02]} Rd8 {[%emt 0:00:02]} 33. Be4 {[%emt 0:00:15]} Ra1+ {[%emt 0:00:11]} 34. Kh2 {[%emt 0:00:02]} Re1 {[%emt 0:00:03]} 35. f3 {[%emt 0:00:07]} a4 {[%emt 0:00:03]} 36. Ra7 {[%emt 0:00:23]} Ra1 {[%emt 0:00:02]} 37. Ra6 {[%emt 0:00:08]} a3 {[%emt 0:00:09]} 38. d6 {[%emt 0:00:10]} Rd1 {[%emt 0:00:13]} 39. Rxa3 {[%emt 0:00:10]} R8xd6 {[%emt 0:00:06]} 40. Kg3 {[%emt 0:00:17]} R1d2 {[%emt 0:00:22]} 41. h4 {[%emt 0:00:20]} Re2 {[%emt 0:00:09]} 42. Bb7 {[%emt 0:00:45]} Rdd2 {[%emt 0:00:33]} 43. f4 {[%emt 0:00:25]} Rb2 {[%emt 0:00:12]} 44. Bd5 {[%emt 0:00:35]} Red2 {[%emt 0:00:08]} 45. Bf3 {[%emt 0:00:08]} Rd4 {[%emt 0:00:04]} 46. Bc6 {[%emt 0:00:51]} Rbb4 {[%emt 0:00:18]} 47. Rf3 {[%emt 0:00:10]} Kf6 {[%emt 0:00:06]} 48. Kg4 {[%emt 0:00:52]} h5+ {[%emt 0:00:17]} 49. Kg3 {[%emt 0:00:01]} Kf5 {[%emt 0:00:14]} 50. Rf1 {[%emt 0:00:42]} Rxf4 {[%emt 0:00:27]} 51. Bd7+ {[%emt 0:00:21]} Ke5 {[%emt 0:00:06]} 52. Re1+ {[%emt 0:00:02]} Kf6 {[%emt 0:00:07]} 53. Kh3 {[%emt 0:00:07]} Rxh4+ {[%emt 0:00:04]} 54. Kg3 {[%emt 0:00:02]} Rhd4 {[%emt 0:00:12]} 55. Bh3 {[%emt 0:00:14]} Rb3+ {[%emt 0:00:14]} 56. Kh2 {[%emt 0:00:07]} Kg5 {[%emt 0:00:14]} 57. Re5+ {[%emt 0:00:07]} f5 {[%emt 0:00:05]} 58. Re6 {[%emt 0:00:03]} Re4 {[%emt 0:00:17]} 59. Rd6 {[%emt 0:00:06]} Rb2 {[%emt 0:00:17]} 60. Rd3 {[%emt 0:00:05]} h4 {[%emt 0:00:11]} 61. Rf3 {[%emt 0:00:05]} Kf6 {[%emt 0:00:17]} 62. Rc3 {[%emt 0:00:06]} g5 {[%emt 0:00:13]} 63. Rc5 {[%emt 0:00:03]} g4 {[%emt 0:00:04]} 64. Rxf5+ {[%emt 0:00:09]} Kxf5 {[%emt 0:00:01]} 65. Bxg4+ {[%emt 0:00:02]} Kxg4 {[%emt 0:00:03]} 66. Kg1 {[%emt 0:00:04]} Ree2 {[%emt 0:00:12]} 67. Kf1 {[%emt 0:00:07]} Rxg2 {[%emt 0:00:09]} 68. Ke1 {[%emt 0:00:01]} Rb1# {[%emt 0:00:02]} 0-1

[Event "Chestnut 2nd Category Final 2025"]
[Site "Kyiv"]
[Date "2025.04.06"]
[Round "5.3"]
[White "Atamanchuk, Dmytro"]
[Black "Udod, Oleksandra"]
[Result "0-1"]
[Annotator "NA"]
[ECO "D10"]
[WhiteElo "1493"]
[BlackElo "1646"]
[PlyCount "92"]
[EventDate "2025.04.03"]
[EventCountry "UKR"]
[SourceTitle "playchess.com"]
[Source "ChessBase"]
[SourceQuality "1"]
[TimeControl "600+5"]

1. d4 d5 2. c4 c6 3. Nc3 dxc4 4. e3 b5 5. a4 b4 6. Nb1 Be6 7. Nd2 c3 8. bxc3 bxc3 9. Nc4 Nf6 10. Qc2 g6 11. Qxc3 Nd5 {[%emt 0:05:52]} 12. Qc2 {[%emt 0:03:55]} Bg7 {[%emt 0:00:36]} 13. Nf3 {[%emt 0:00:24]} c5 {[%emt 0:00:37]} 14. Bb2 {[%emt 0:00:13]} Nb4 {[%emt 0:00:27]} 15. Qd2 {[%emt 0:00:27]} Bf5 {[%emt 0:01:09]} 16. Rc1 {[%emt 0:00:20]} O-O {[%emt 0:00:13]} 17. Be2 {[%emt 0:00:03]} N8c6 {[%emt 0:00:13]} 18. O-O {[%emt 0:00:31]} Qd7 {[%emt 0:00:37]} 19. Rfd1 {[%emt 0:00:58]} Rfd8 {[%emt 0:00:17]} 20. dxc5 {[%emt 0:01:59]} Qe6 {[%emt 0:01:07]} 21. Nd4 {[%emt 0:01:07]} Nxd4 {[%emt 0:00:10]} 22. Bxd4 {[%emt 0:00:18]} Nc6 {[%emt 0:00:23]} 23. Qc3 {[%emt 0:00:18]} Nxd4 {[%emt 0:00:03]} 24. exd4 {[%emt 0:00:51]} Qxe2 {[%emt 0:00:01]} 25. Re1 {[%emt 0:00:02]} Qa2 {[%emt 0:00:04]} 26. Ra1 {[%emt 0:00:21]} Qc2 {[%emt 0:00:01]} 27. Qxc2 {[%emt 0:00:12]} Bxc2 {[%emt 0:00:01]} 28. Rac1 {[%emt 0:00:07]} Bxa4 {[%emt 0:00:03]} 29. Rxe7 {[%emt 0:00:02]} Rxd4 {[%emt 0:00:05]} 30. Nd6 {[%emt 0:00:03]} Rd1+ {[%emt 0:00:02]} 31. Rxd1 {[%emt 0:00:03]} Bxd1 {[%emt 0:00:01]} 32. c6 {[%emt 0:00:00]} Bg4 {[%emt 0:00:16]} 33. c7 {[%emt 0:00:00]} Be6 {[%emt 0:00:13]} 34. c8=Q+ {[%emt 0:00:09]} Bxc8 35. Re8+ {[%emt 0:00:10]} Bf8 {[%emt 0:00:05]} 36. Nxc8 {[%emt 0:00:24]} Kg7 {[%emt 0:00:10]} 37. Nd6 {[%emt 0:00:13]} Rxe8 {[%emt 0:00:05]} 38. Nxe8+ {[%emt 0:00:05]} Kg8 39. Nc7 Bc5 {[%emt 0:00:10]} 40. Nb5 {[%emt 0:00:10]} a6 {[%emt 0:00:05]} 41. Nc3 {[%emt 0:00:05]} a5 {[%emt 0:00:05]} 42. Na4 Bb4 43. Kf1 Kf8 44. Ke2 Ke7 45. Kd3 {[%emt 0:00:20]} Kd6 46. Kc4 Ke5 {[%emt 0:00:25]} 0-1

[Event "Chestnut 2nd Category Final 2025"]
[Site "Kyiv"]
[Date "2025.04.06"]
[Round "5.4"]
[White "Kulak, Volodymyr"]
[Black "Diachuk, Ihor"]
[Result "1-0"]
[Annotator "NA"]
[ECO "C53"]
[WhiteElo "1607"]
[BlackElo "1550"]
[PlyCount "71"]
[EventDate "2025.04.03"]
[EventCountry "UKR"]
[SourceTitle "playchess.com"]
[Source "ChessBase"]
[SourceQuality "1"]
[TimeControl "600+5"]

1. e4 e5 2. Nf3 Nc6 3. Bc4 Bc5 4. c3 d6 5. d4 exd4 6. cxd4 Bb4+ 7. Bd2 Bxd2+ 8. Nbxd2 h6 9. O-O Nge7 10. Bb5 a6 11. Ba4 O-O {[%emt 0:00:30]} 12. d5 {[%emt 0:02:33]} Ne5 {[%emt 0:00:03]} 13. Nxe5 {[%emt 0:00:03]} dxe5 {[%emt 0:00:03]} 14. h3 {[%emt 0:00:12]} Bd7 {[%emt 0:00:02]} 15. Bxd7 {[%emt 0:00:07]} Qxd7 {[%emt 0:00:01]} 16. Nf3 {[%emt 0:00:02]} Ng6 {[%emt 0:00:02]} 17. Rc1 {[%emt 0:00:24]} Rac8 {[%emt 0:00:04]} 18. Qb3 {[%emt 0:00:07]} b6 {[%emt 0:00:02]} 19. Rc6 {[%emt 0:00:22]} a5 {[%emt 0:00:02]} 20. Rfc1 {[%emt 0:00:06]} f6 {[%emt 0:00:15]} 21. d6+ {[%emt 0:00:06]} Kh8 {[%emt 0:00:09]} 22. Rxc7 {[%emt 0:00:24]} Rxc7 {[%emt 0:00:09]} 23. dxc7 {[%emt 0:00:03]} Rc8 {[%emt 0:00:03]} 24. Qxb6 {[%emt 0:00:08]} Nf8 {[%emt 0:00:02]} 25. Qxa5 {[%emt 0:00:18]} Ne6 {[%emt 0:00:01]} 26. b4 {[%emt 0:00:34]} Rxc7 {[%emt 0:00:03]} 27. Rxc7 {[%emt 0:00:03]} Nxc7 {[%emt 0:00:01]} 28. a4 {[%emt 0:00:28]} Qc8 {[%emt 0:00:12]} 29. Qc5 {[%emt 0:00:28]} Qb7 {[%emt 0:00:04]} 30. b5 {[%emt 0:00:30]} Qxe4 {[%emt 0:00:03]} 31. Qxc7 {[%emt 0:00:11]} Qxa4 {[%emt 0:00:02]} 32. b6 {[%emt 0:00:12]} e4 {[%emt 0:00:02]} 33. b7 {[%emt 0:00:53]} exf3 {[%emt 0:00:03]} 34. b8=Q+ {[%emt 0:00:12]} Kh7 {[%emt 0:00:02]} 35. Qbb7 {[%emt 0:00:32]} fxg2 {[%emt 0:00:05]} 36. Qxg7# {[%emt 0:00:05]} 1-0

[Event "Chestnut 2nd Category Final 2025"]
[Site "Kyiv"]
[Date "2025.04.06"]
[Round "5.5"]
[White "Voloshyn, Maksym"]
[Black "Fabrykator, Myroslava"]
[Result "1-0"]
[Annotator "NA"]
[ECO "A01"]
[WhiteElo "1621"]
[BlackElo "1457"]
[PlyCount "127"]
[EventDate "2025.04.03"]
[EventCountry "UKR"]
[SourceTitle "playchess.com"]
[Source "ChessBase"]
[SourceQuality "1"]
[TimeControl "600+5"]

1. b3 c5 2. Bb2 Nc6 {[%emt 0:00:04]} 3. g3 {[%emt 0:00:04]} Nf6 {[%emt 0:00:02]} 4. Bg2 {[%emt 0:00:01]} g6 {[%emt 0:00:01]} 5. Nf3 {[%emt 0:00:02]} Bg7 {[%emt 0:00:02]} 6. d3 {[%emt 0:00:02]} O-O {[%emt 0:00:04]} 7. c4 {[%emt 0:00:02]} e6 {[%emt 0:00:06]} 8. O-O {[%emt 0:00:07]} d5 {[%emt 0:00:03]} 9. Qc2 {[%emt 0:00:12]} d4 {[%emt 0:00:14]} 10. a3 {[%emt 0:00:06]} e5 {[%emt 0:00:23]} 11. Nbd2 {[%emt 0:00:10]} Rb8 {[%emt 0:00:12]} 12. Rfe1 {[%emt 0:00:36]} Bd7 {[%emt 0:00:22]} 13. Ng5 {[%emt 0:00:21]} Qc8 {[%emt 0:00:30]} 14. Nge4 {[%emt 0:00:03]} Nxe4 {[%emt 0:00:37]} 15. Nxe4 {[%emt 0:00:05]} Bh3 {[%emt 0:00:05]} 16. Nxc5 {[%emt 0:00:33]} Bxg2 {[%emt 0:01:12]} 17. Kxg2 {[%emt 0:00:03]} Ne7 {[%emt 0:00:52]} 18. b4 {[%emt 0:00:10]} b6 {[%emt 0:00:22]} 19. Ne4 {[%emt 0:00:11]} Qb7 {[%emt 0:00:53]} 20. Kg1 {[%emt 0:00:11]} b5 {[%emt 0:00:39]} 21. c5 {[%emt 0:00:07]} Nf5 {[%emt 0:00:57]} 22. Rac1 {[%emt 0:00:26]} Qc7 {[%emt 0:00:46]} 23. Qb3 {[%emt 0:00:47]} Rbc8 {[%emt 0:00:39]} 24. Nd6 {[%emt 0:00:38]} Nxd6 {[%emt 0:00:33]} 25. cxd6 {[%emt 0:00:02]} Qxd6 {[%emt 0:00:10]} 26. Rc2 {[%emt 0:00:12]} Qd7 {[%emt 0:00:42]} 27. Rec1 {[%emt 0:00:11]} Rxc2 {[%emt 0:00:06]} 28. Qxc2 {[%emt 0:00:06]} Bh6 {[%emt 0:00:23]} 29. Qc6 {[%emt 0:00:14]} Qe7 {[%emt 0:00:35]} 30. Rc2 {[%emt 0:00:06]} Qe8 {[%emt 0:00:25]} 31. Bc1 {[%emt 0:00:38]} Qxc6 {[%emt 0:00:12]} 32. Rxc6 {[%emt 0:00:02]} Bxc1 {[%emt 0:00:04]} 33. Rxc1 {[%emt 0:00:02]} Re8 {[%emt 0:00:10]} 34. Rc7 {[%emt 0:00:16]} a6 {[%emt 0:00:11]} 35. Rc6 {[%emt 0:00:11]} Re6 {[%emt 0:00:01]} 36. Rxe6 {[%emt 0:00:09]} fxe6 {[%emt 0:00:01]} 37. Kg2 {[%emt 0:00:01]} Kf7 {[%emt 0:00:01]} 38. Kf3 {[%emt 0:00:01]} Kf6 {[%emt 0:00:05]} 39. Ke4 {[%emt 0:00:02]} h6 {[%emt 0:00:11]} 40. h3 {[%emt 0:00:04]} g5 {[%emt 0:00:06]} 41. g4 {[%emt 0:00:05]} Kg6 {[%emt 0:00:10]} 42. Kxe5 {[%emt 0:00:02]} h5 {[%emt 0:00:01]} 43. Kxd4 {[%emt 0:00:05]} hxg4 {[%emt 0:00:03]} 44. hxg4 {[%emt 0:00:01]} Kf6 {[%emt 0:00:01]} 45. Ke4 {[%emt 0:00:08]} e5 {[%emt 0:00:07]} 46. e3 {[%emt 0:00:01]} Ke6 {[%emt 0:00:02]} 47. f4 {[%emt 0:00:09]} exf4 {[%emt 0:00:07]} 48. exf4 {[%emt 0:00:01]} gxf4 {[%emt 0:00:03]} 49. Kxf4 {[%emt 0:00:02]} Kd5 {[%emt 0:00:01]} 50. g5 {[%emt 0:00:02]} Kd4 {[%emt 0:00:01]} 51. g6 {[%emt 0:00:01]} Kxd3 {[%emt 0:00:01]} 52. g7 {[%emt 0:00:01]} Kc3 {[%emt 0:00:02]} 53. g8=Q {[%emt 0:00:03]} Kb2 {[%emt 0:00:01]} 54. Ke3 {[%emt 0:00:09]} Kxa3 {[%emt 0:00:01]} 55. Qg6 {[%emt 0:00:07]} Kxb4 {[%emt 0:00:03]} 56. Qxa6 {[%emt 0:00:03]} Kc4 {[%emt 0:00:01]} 57. Kd2 {[%emt 0:00:04]} Kb4 {[%emt 0:00:03]} 58. Kc2 {[%emt 0:00:01]} Kc5 {[%emt 0:00:02]} 59. Qa3+ {[%emt 0:00:02]} b4 {[%emt 0:00:01]} 60. Qb3 {[%emt 0:00:03]} Kb5 {[%emt 0:00:02]} 61. Kd3 {[%emt 0:00:01]} Kc5 {[%emt 0:00:01]} 62. Ke4 {[%emt 0:00:01]} Kb5 {[%emt 0:00:02]} 63. Kd5 {[%emt 0:00:01]} Ka5 {[%emt 0:00:01]} 64. Kc5 {[%emt 0:00:01]} 1-0